Cogmind - Beta 15 @@@ ROGUE MODE // 2025.10.12 @ 13:30:24 Player: welikiq Result: Destroyed by S-10 Pest with Light Assault Rifle Performance ------------- Evolutions (1) 500 Regions Visited (2) 400 Robots Destroyed (25) 125 Value Destroyed (600) 600 Prototype IDs (3) 60 Alien Tech Used (0) 0 Bonus (0) 0 TOTAL SCORE: 1685 Bonus ------- None Cogmind --------- Core Integrity 0/400 Matter 99/300 Energy 100/100 System Corruption 0% Temperature Cool (0) Movement Core (100) Ox1 Location -9/Materials Parts ------- > --- POWER (1) -------- (None) > --- PROPULSION (2) --- (None) > --- UTILITY (3) ------ Small Storage Unit > --- WEAPON (3) ------- (None) > --- INVENTORY (8) ---- Light Treads Wheel Large Matter Pod (25) Terrain Scanner ECM Suite Assault Rifle Light Assault Rifle Grenade Launcher Peak State ------------ > --- POWER ------------ Improved Ion Engine > --- PROPULSION ------- Wheel Compact Wheel > --- UTILITY ---------- Small Storage Unit Core Shielding Light Armor Plating > --- WEAPON ----------- Light Assault Rifle Shotgun Light Cannon > --- INVENTORY -------- Wheel Large Matter Pod Terrain Scanner ECM Suite Assault Rifle Assault Rifle Grenade Launcher [Rating: 11] Favorites ----------- Power Ion Engine Engine Ion Engine Propulsion Wheel Wheel Wheel Utility Small Storage Unit Device ECM Suite Storage Small Storage Unit Protection Core Shielding Weapon Assault Rifle Ballistic Gun Assault Rifle Ballistic Cannon Light Cannon Launcher Grenade Launcher Build | -11 -10 -9 ------- Run | Yrd Mat Mat Slots Evolved 2 | . . 2 Power . | . . . Propulsion . | . . . Utility 1 | . . 1 Weapon 1 | . . 1 Parts Attached 18 | 6 7 5 Power 3 | 1 . 2 Engine 3 | 1 . 2 Core . | . . . Reactor . | . . . Propulsion 4 | 2 2 . Treads . | . . . Leg . | . . . Wheel 4 | 2 2 . Hover . | . . . Flight . | . . . Utility 4 | 1 2 1 Device 1 | . 1 . Storage 1 | 1 . . Processor . | . . . Hackware . | . . . Protection 2 | . 1 1 Artifact . | . . . Weapon 7 | 2 3 2 Energy Gun . | . . . Energy Cannon . | . . . Ballistic Gun 5 | 2 2 1 Ballistic Cannon 1 | . . 1 Launcher 1 | . 1 . Special Weapon . | . . . Impact Weapon . | . . . Slashing Weapon . | . . . Piercing Weapon . | . . . Special Melee Weapon . | . . . Unidentified Prototypes . | . . . Parts Lost 9 | . 1 8 Power 1 | . . 1 Propulsion 2 | . . 2 Utility 2 | . . 2 Weapon 4 | . 1 3 Highest Loss Streak 7 | . 1 7 To Critical Strikes . | . . . Average Backups 5 | 1 6 7 Power . | . 1 . Propulsion 1 | . 2 1 Utility 1 | . . 2 Weapon 2 | . 2 2 Tool/Special . | . . . Unused Backups 7 | . 3 4 Power . | . . . Propulsion 3 | . 1 2 Utility 3 | . 1 2 Weapon 1 | . 1 . Tool/Special . | . . . Average Slot Usage (%) 86 | . 90 79 Engine 12 | . 14 9 Wheel 24 | . 28 15 Device 3 | . 4 . Storage 13 | . 14 11 Protection 6 | . . 17 Ballistic Gun 24 | . 27 17 Ballistic Cannon 2 | . . 7 Peak Build Rating 11 | 6 7 11 Average Rating 6 | 5 6 8 On Entrance 4 | . 6 6 Naked Turns . | . . . Heaviest Build 24 | 13 17 24 Greatest Support 26 | 26 26 26 Greatest Overweight (x) 1 | . . 1 Average Overweight (x) . | . . . Largest Inventory Capacity 8 | 8 8 8 Average Capacity 7 | 7 8 8 Most Carried 8 | 3 8 8 Average Carried 5 | 1 6 7 Final Capacity 8 | 8 8 8 Final Carried 8 | 3 8 8 Class Distribution -------------------- 81% | Mutant 18% | Tank Dominant Class ---------------- Mutant | -10/Materials Tank | -9/Materials Resources | -11 -10 -9 ----------- Run | Yrd Mat Mat Matter Collected 754 | 272 371 111 Remotely . | . . . Salvage Created 813 | 105 374 334 Parts 60 | 8 28 24 Haulers Intercepted . | . . . Recyclers Shooed 1 | 1 . . Parts Field Recycled . | . . . Retrieved Matter . | . . . Parts Self-Destructed . | . . . Prevented . | . . . Kills | -11 -10 -9 ------- Run | Yrd Mat Mat Combat Hostiles Destroyed 17 | . 10 7 Guns 15 | . 10 5 Cannons 2 | . . 2 Classes Destroyed 9 | 2 5 2 Worker 1 | . 1 . Builder 1 | . . 1 Tunneler 1 | 1 . . Recycler 2 | 1 . 1 Operator 1 | . 1 . Watcher 2 | . 1 1 Swarmer 3 | . 3 . Grunt 13 | . 7 6 Sentry 1 | . . 1 Best Kill Streak 7 | 2 2 7 Combat Bots Only 4 | . 2 4 Max Kills in Single Turn 2 | 1 2 1 Gunslinging 1 | . 1 . Exploded . | . . . Melee . | . . . Uniques/NPCs Destroyed . | . . . Combat | -11 -10 -9 -------- Run | Yrd Mat Mat Hostile Shots Fired 228 | . 62 166 Missed 59 | . 8 51 Hits 169 | . 54 115 Projectile 169 | . 54 115 Critical Strikes 1 | . 1 . Damage Taken 1625 | . 572 1053 Core 545 | . 141 404 Absorbed by Shields . | . . . Redirected to Shielding 50 | . . 50 Core Remaining (%) 71 | 100 43 . Volleys Fired 74 | 3 50 21 Largest 3 | 2 2 3 Hottest 73 | 40 40 73 Shots Fired 164 | 6 99 59 Gun 142 | 6 98 38 Cannon 21 | . . 21 Launcher 1 | . 1 . Special . | . . . Kinetic 163 | 6 98 59 Thermal . | . . . Explosive 1 | . 1 . Electromagnetic . | . . . Robot Hit Streak 15 | 3 15 13 Robot Miss Streak 8 | 1 8 4 Penetration Max . | . . . Secondary Targets 2 | . 2 . Max Gunslinging Chain 1 | . 1 . Shots Hit Robots 92 | 4 54 34 Core Hits 42 | 3 22 17 Critical Kills . | . . . Critical Parts Destroyed . | . . . Critical Strikes . | . . . Melee Attacks . | . . . Impact . | . . . Slashing . | . . . Piercing . | . . . Sneak Attacks . | . . . Combat Hostiles . | . . . Follow-up Attacks . | . . . Damage Inflicted 1263 | 43 652 568 Guns 1104 | 43 652 409 Cannons 159 | . . 159 Explosions . | . . . Melee . | . . . Ramming . | . . . Kinetic 1263 | 43 652 568 Thermal . | . . . Explosive . | . . . Electromagnetic . | . . . Impact . | . . . Slashing . | . . . Piercing . | . . . Highest Corruption . | . . . Average Corruption . | . . . Corruption Purged . | . . . Corruption Blocked . | . . . Overload Shots . | . . . Overflow Damage . | . . . Projectiles . | . . . Explosions . | . . . Melee . | . . . Knockbacks . | . . . Impact . | . . . Kinetic . | . . . Secondary . | . . . Self-Inflicted Damage . | . . . Shots . | . . . Rammed . | . . . Targets Rammed . | . . . Kicked . | . . . Crushed . | . . . Highest Temperature 74 | . 12 74 Average Temperature 26 | . 6 28 Received Heat Transfer 402 | . 264 138 Siege Activations . | . . . Martial Activations . | . . . Shielding Activations . | . . . Robots Disrupted . | . . . Combat Hostiles . | . . . Robots Corrupted . | . . . Combat Hostiles . | . . . Parts Fried . | . . . Impact Corruptions . | . . . Robots Melted . | . . . Combat Hostiles . | . . . Parts Melted . | . . . Heat Transferred . | . . . Parts Sabotaged . | . . . Parts Stolen . | . . . Parts Stripped . | . . . Power Chain Reactions . | . . . Alert | -11 -10 -9 ------- Run | Yrd Mat Mat Maximum Alert Level . | . . . Low Security (%) 100 | 100 100 100 Level 1 . | . . . Level 2 . | . . . Level 3 . | . . . Level 4 . | . . . Level 5 . | . . . High Security . | . . . Max Security . | . . . Peak Influence 102 | 5 87 102 Initial 29 | . . 29 Average 28 | . 36 20 Influence Increases 528 | 10 325 193 Destroy 0b10 Robot/C 340 | . 200 140 Destroy 0b10 Robot/NC 40 | 10 15 15 Destroy Leader 74 | . 52 22 Successful Hack 36 | . 36 . Disable Machine 15 | . . 15 Destroy Structure 8 | . 7 1 Lose Combat Pursuer 15 | . 15 . Influence Decreases 528 | 10 253 265 Entered New Map 43 | . . 43 Time Decay 405 | 10 243 152 Lost Part 80 | . 10 70 Squads Dispatched 6 | . 5 1 Investigation 6 | . 5 1 Extermination . | . . . Reinforcement . | . . . Assault . | . . . Garrison . | . . . Intercept . | . . . Searches Triggered . | . . . Construction Impeded . | . . . Haulers Reinforced . | . . . Active Scanning Responses . | . . . Cargo Convoy Interrupts . | . . . Stealth | -11 -10 -9 --------- Run | Yrd Mat Mat Distress Signals 2 | . . 2 Communications Jammed . | . . . Distress Signals . | . . . Times Spotted 37 | . 23 14 Peak Tracking Total 7 | . 7 5 Tactical Retreats 5 | . 5 . Traps | -11 -10 -9 ------- Run | Yrd Mat Mat Traps Triggered 2 | . 1 1 Indirectly . | . . . Trap Hack Attempts . | . . . Triggered . | . . . Disarmed . | . . . Reprogrammed . | . . . Reused . | . . . Traps Extracted . | . . . Installed . | . . . Triggered . | . . . Machines | -11 -10 -9 ---------- Run | Yrd Mat Mat Machines Disabled 1 | . . 1 Max in Single Turn 1 | . . 1 Machines Repaired . | . . . Machines Dismantled . | . . . Machines Sabotaged . | . . . Overloaded Fab Kills . | . . . Hacking | -11 -10 -9 --------- Run | Yrd Mat Mat Machines Accessed 5 | . 5 . Terminals 4 | . 4 . Fabricators . | . . . Repair Stations 1 | . 1 . Recycling Units . | . . . Scanalyzers . | . . . Garrison Access . | . . . Total Hacks 20 | . 20 . Successful 9 | . 9 . Failed 11 | . 11 . Catastrophic . | . . . Database Lockouts . | . . . Manual 1 | . . 1 Terminals 16 | . 16 . Fabricators . | . . . Repair Stations 4 | . 4 . Recycling Units . | . . . Scanalyzers . | . . . Garrison Access . | . . . Terminal Hacks 7 | . 7 . Record 4 | . 4 . Prototype ID Bank 1 | . 1 . Transport Status 1 | . 1 . Zone Layout 1 | . 1 . Fabricator Hacks . | . . . Repair Station Hacks 2 | . 2 . Scan Component 2 | . 2 . Recycling Unit Hacks . | . . . Scanalyzer . | . . . Garrison Access Hacks . | . . . Unauthorized Hacks . | . . . Terminals . | . . . Fabricators . | . . . Repair Stations . | . . . Recycling Units . | . . . Scanalyzers . | . . . Garrison Access . | . . . Data Cores Recovered 1 | . 1 . Used . | . . . Hacking Detections 5 | . 5 . Full Trace Events 5 | . 5 . Feedback Events . | . . . Feedback Blocked . | . . . Robot Schematics Acquired . | . . . Robots Built . | . . . Authchips . | . . . Time . | . . . Total Robot Build Rating . | . . . Part Schematics Acquired . | . . . Parts Built . | . . . Authchips . | . . . Time . | . . . Total Part Build Rating . | . . . Parts Repaired . | . . . Time . | . . . Parts Recycled . | . . . Recycled Matter . | . . . Retrieved Matter . | . . . Retrieved Components . | . . . Parts Scanalyzed . | . . . Part Schematics Acquired . | . . . Parts Damaged . | . . . Bothacking | -11 -10 -9 ------------ Run | Yrd Mat Mat Used RIF Installer . | . . . Robots Hacked . | . . . Non-combat . | . . . Combat . | . . . Robot Hacks Applied . | . . . Relay Couplers Released . | . . . Fabnet Peak Effective % . | . . . Robots Rewired . | . . . Allies Hacked . | . . . Hacks Repelled . | . . . Allies | -11 -10 -9 -------- Run | Yrd Mat Mat Total Allies . | . . . Largest Group . | . . . Highest-Rated Group . | . . . Highest-Rated Ally . | . . . Total Orders . | . . . Ally Attacks . | . . . Total Damage . | . . . Kills . | . . . Allies Corrupted . | . . . Allies Melted . | . . . Intel | -11 -10 -9 ------- Run | Yrd Mat Mat Active Infowar (turns) 323 | . 323 . ECM 323 | . 323 . Robot Analysis Total . | . . . Derelict Logs Recovered . | . . . Drone Launches . | . . . Drone Recoveries . | . . . Exploration | -11 -10 -9 ------------- Run | Yrd Mat Mat Turns Passed 1621 | 149 1012 460 Spaces Moved 1283 | 138 844 301 Core 9 | 9 . . Treads . | . . . Legs . | . . . Wheels 1274 | 129 844 301 Hover . | . . . Flight . | . . . Fastest Speed 50 | 50 80 90 Average Speed 88 | 87 86 94 Slowest Speed 115 | 100 90 115 Overloaded Moves . | . . . Propulsion Burnouts . | . . . Robots Hopped . | . . . Potential Cave-ins . | . . . Cave-ins Triggered . | . . . Exploration Rate (%) 25 | 4 53 20 Regions Visited 2 Branch Regions . Pre-discovered Areas . | . . . Known Exits Taken . | . . . Unknown Exits Taken 2 | 1 1 . Scrap Searched . | . . . Spaces Dug . | . . . Terrain Destroyed 7 | . 7 . Melee . | . . . Projectile . | . . . AOE 7 | . 7 . Terrain Rammed . | . . . Walls Destroyed . | . . . Machines Disabled . | . . . Actions | -11 -10 -9 --------- Run | Yrd Mat Mat Total 1614 | 158 1027 429 Wait 202 | 8 108 86 Move 1281 | 137 843 301 Hop . | . . . Pick Up 20 | 4 9 7 Fast Attach 5 | 5 . . Attach 6 | 1 1 4 Detach . | . . . Swap 19 | . 13 6 Drop 7 | . 3 4 Fire 74 | 3 50 21 Melee . | . . . Ram . | . . . Kick . | . . . Crush . | . . . Escape Stasis . | . . . Rewire . | . . . Trap . | . . . Miscellaneous . | . . . Route ------- -11/Scrapyard -10/Materials (discovered 4 exits: *Mat / [*Min x2] / [*Sub]) -9/Materials History --------- Turn | Location | Event 12 | -11/Scrapyard | Discovered new exit (range 16) 150 | -11/Scrapyard | Entered Materials 303 | -10/Materials | Build established: Mutant 772 | -10/Materials | Discovered new exit (range 15) 990 | -10/Materials | Discovered new exit (range 10) 1014 | -10/Materials | Discovered new exit (range 13) 1055 | -10/Materials | Discovered new exit (range 15) 1154 | -10/Materials | Core integrity fell below 50% 1162 | -10/Materials | Entered another Materials area 1162 | -9/Materials | Evolved 2 slots: Utility x1, Weapon x1 1525 | -9/Materials | Build established: Tank 1592 | -9/Materials | Core integrity fell below 50% 1613 | -9/Materials | Core integrity fell below 20% 1622 | -9/Materials | Destroyed by S-10 Pest with Light Assault Rifle Last Messages --------------- 01475_ U-05 Engineer lays Concrete. 01491_ U-05 Engineer destroyed. 01495_ W-16 Scout destroyed. 01498_ R-06 Scavenger destroyed. 01498_ R-06 Scavenger collects Lgt. Ion Engine. 01501_ G-34 Mercenary destroyed. 01502_ R-06 Scavenger collects Visual Processing Unit. 01504_ Acquired 2 matter. 01506_ R-06 Scavenger collects Com. Wheel. 01510_ Lgt. Armor Plating destroyed. 01510_ W-16 Scout sends out distress signal. 01518_ G-34 Mercenary destroyed. 01539_ Assault Rifle destroyed. 01543_ S-10 Pest destroyed. 01551_ Acquired 6 matter. 01560_ Lgt. Cannon destroyed. 01565_ Imp. Ion Engine destroyed. 01566_ Com. Wheel destroyed. 01574_ Shotgun destroyed. 01598_ Core Shielding destroyed. Map ----- +----------------------------------------------------+ | ?????????????????????????????????????????????????? | | ?????????????????????????????????????????????????? | | ?????????????????????????????????????????????????? | | ?????????????????????????????????????????????????? | | ?????????????????????????????????????????????????? | | ?????????????????????????????????????????????????? | | ?????????????????????????????????????????????????? | | ?????????????????????????????????????????????????? | | ?????????????????????????????????????????????????? | | ?????????????????????????????????????????????????? | | ?????????????????????????????????????????????????? | | ?????????????????????????????????????????????????? | | ?????????????????????????????????????????????????? | | ?????????????????????????????????????????????????? | | ????????????????????????#####????????????????????? | | ????????????????????????# ????????????????????? | | ????????????????????????# ???????????????????? | | ????????????????????????# ""?????????????????? | | ????????????????????????# """""???????????????? | | ????????????????????????? = """""#??????????????? | | ?????????????????????????? """""#??????????????? | | ??????????????????????????? """ ???????????????? | | ???????????????????????????? ?????????????????? | | ?????????????################+####???????????????? | | ?????????? s%[ #???????????????? | | ?????????? @ s= #???????????????? | | ?????????? s #???????????????? | | ?????????????#################=[ #???????????????? | | ?????????????????????????????#%* #???????????????? | | ?????????????????????????????#! #???????????????? | | ?????????????????????????????+ #???????????????? | | ?????????????????????????????#%= #???????????????? | | ?????????????????????????????#[ #???????????????? | | ?????????????????????????????#[%!#???????????????? | | ?????????????????????????????# #????"#?????????? | | ?????????????????????????????# #?? "#?????????? | | ?????######??????????????????# # #?????????? | | ????##!!!!##?????????????????# + [[/#?????????? | | ????#! !#?????????????????# # [[ #?????????? | | ????# #?????????????????# #??[[ #?????????? | | ????# ##????????????????##= ##???##?????????? | | ????# #???##+############%* #??????????????? | | ????# ##### %%! #??????????????? | | ????# %*%! #??????????????? | | ????# % [ #??????????????? | | ????# """ ##### #??????????????? | | ????## """ #???#######??????????????? | | ?????# """ "" #????????????????????????? | | ?????# """ T"% #????????????????????????? | | ?????# """ "" #????????????????????????? | +----------------------------------------------------+ Best States ------------- Heat Dissipation 28 Energy Generation 12 Energy Capacity 265 Matter Stores 300 Matter Capacity 300 Sight Range 16 Terrain Scan Density 10 ECM Strength 1 Armor Coverage 150 Core Shielding 20 Evasion (%) 50 Item Schematics ----------------- None Robot Schematics ------------------ None Fabricated ------------ Nothing Repaired ---------- Nothing Alien Tech Used ----------------- None Achievements -------------- One Hack Too Far Challenges ------------ None Game ------ Seed PhysicsTowerBoomstick Manual? 0 Play Time 01:02:44 Cumulative 1.7 hours Start 2025.10.12 @ 12:20:01 End 2025.10.12 @ 13:30:24 Sessions 1 Manual Loads 0 Difficulty Rogue Special Mode None Game No. 5 Rogue 5 Adventurer 0 Explorer 0 Win Type - Total 0 Types 0/0/0/0/0/0/0/0/0/0 Lore% 0 Gallery% 2 Achievement% 2 Wizard Run 0 Options --------- Layout 0 ASCII 0 Keyboard 1 Movement Arrows Keybinds 0 Fullscreen 1 Font 24/Smallcaps Map View 76x50 Zoom Use 55% Tactical HUD 1 Map Filters NONE Filters NONE Steam 1 RUN: 97573952-5c31-468f-9772-70f31cb67634